[Event "Titled Tuesday Blitz January 03 Early 2023"]
[White "Abdilkhair, Abilmansur"]
[Black "HSH1987"]
[WhiteFideId "13716417"]
[WhiteElo "2268"]
[BlackElo "2675"]
[Result "0-1"]
[Round "07"]
[TimeControl "180+2"]
[Date "2023.01.03"]
[WhiteClock "0:00:01"]
[BlackClock "0:00:02"]

1. d4 {[%clk 0:03:00]}  Nf6 {[%clk 0:02:59]} 2. c4 {[%clk 0:03:00]}  c5 {[%clk 0:03:00]} 3. d5 {[%clk 0:03:00]}  b5 {[%clk 0:03:01]} 4. Nf3 {[%clk 0:03:01]}  g6 {[%clk 0:02:54]} 5. cxb5 {[%clk 0:02:57]}  a6 {[%clk 0:02:54]} 6. b6 {[%clk 0:02:56]}  d6 {[%clk 0:02:52]} 7. Nc3 {[%clk 0:02:56]}  Bg7 {[%clk 0:02:51]} 8. e4 {[%clk 0:02:56]}  O-O {[%clk 0:02:51]} 9. Bc4 {[%clk 0:02:53]}  Nbd7 {[%clk 0:02:50]} 10. O-O {[%clk 0:02:46]}  Rb8 {[%clk 0:02:47]} 11. h3 {[%clk 0:02:43]}  Rxb6 {[%clk 0:02:46]} 12. a4 {[%clk 0:02:37]}  Rb4 {[%clk 0:02:44]} 13. Qe2 {[%clk 0:02:33]}  Qb6 {[%clk 0:02:24]} 14. a5 {[%clk 0:02:23]}  Qb8 {[%clk 0:02:20]} 15. Ra2 {[%clk 0:02:05]}  Ne8 {[%clk 0:02:17]} 16. Re1 {[%clk 0:01:35]}  Nc7 {[%clk 0:02:16]} 17. Nd1 {[%clk 0:01:23]}  Nf6 {[%clk 0:02:02]} 18. Bd2 {[%clk 0:01:23]}  Rb7 {[%clk 0:01:57]} 19. Bc3 {[%clk 0:01:23]}  Bd7 {[%clk 0:01:55]} 20. e5 {[%clk 0:01:10]}  Nfxd5 {[%clk 0:01:50]} 21. exd6 {[%clk 0:01:03]}  Nxc3 {[%clk 0:01:49]} 22. bxc3 {[%clk 0:00:57]}  exd6 {[%clk 0:01:48]} 23. Qd3 {[%clk 0:00:45]}  d5 {[%clk 0:01:35]} 24. Qd2 {[%clk 0:00:21]}  Bxh3 {[%clk 0:01:18]} 25. Bf1 {[%clk 0:00:17]}  Bg4 {[%clk 0:01:15]} 26. Qf4 {[%clk 0:00:15]}  Bf5 {[%clk 0:01:03]} 27. g4 {[%clk 0:00:13]}  Be4 {[%clk 0:00:59]} 28. Ng5 {[%clk 0:00:12]}  Bh6 {[%clk 0:00:51]} 29. f3 {[%clk 0:00:09]}  Bb1 {[%clk 0:00:47]} 30. Rh2 {[%clk 0:00:08]}  Bxg5 {[%clk 0:00:20]} 31. Qxg5 {[%clk 0:00:08]}  Ne6 {[%clk 0:00:20]} 32. Qh6 {[%clk 0:00:09]}  Qg3+ {[%clk 0:00:19]} 33. Kh1 {[%clk 0:00:05]}  g5 {[%clk 0:00:18]} 34. Nf2 {[%clk 0:00:05]}  Bg6 {[%clk 0:00:16]} 35. Bg2 {[%clk 0:00:04]}  Qxf2 {[%clk 0:00:14]} 36. Rf1 {[%clk 0:00:05]}  Qe2 {[%clk 0:00:11]} 37. f4 {[%clk 0:00:05]}  gxf4 {[%clk 0:00:11]} 38. Rg1 {[%clk 0:00:05]}  Rb2 {[%clk 0:00:10]} 39. Bxd5 {[%clk 0:00:02]}  Qxh2+ {[%clk 0:00:10]} 40. Qxh2 {[%clk 0:00:03]}  Rxh2+ {[%clk 0:00:11]} 41. Kxh2 {[%clk 0:00:03]}  Rd8 {[%clk 0:00:12]} 42. c4 {[%clk 0:00:04]}  Nc7 {[%clk 0:00:11]} 43. Bc6 {[%clk 0:00:04]}  Rd2+ {[%clk 0:00:06]} 44. Kh3 {[%clk 0:00:04]}  Rd3+ {[%clk 0:00:06]} 45. Kh4 {[%clk 0:00:03]}  Ne6 {[%clk 0:00:06]} 46. Re1 {[%clk 0:00:03]}  Kg7 {[%clk 0:00:06]} 47. Bd5 {[%clk 0:00:03]}  h6 {[%clk 0:00:05]} 48. Rb1 {[%clk 0:00:02]}  Ng5 {[%clk 0:00:05]} 49. Rh1 {[%clk 0:00:02]}  f3 {[%clk 0:00:04]} 50. Kg3 {[%clk 0:00:00]}  Rc3 {[%clk 0:00:02]} 51. Kf2 {[%clk 0:00:01]}  Ne4+ {[%clk 0:00:02]} 0-1


[Site "https://www.chess.com"]

[Event "Titled Tuesday Blitz January 03 Early 2023"]
[White "Batsiashvili, Nino"]
[Black "Rostomyan, Mikayel"]
[WhiteFideId "13602993"]
[BlackFideId "13313754"]
[WhiteElo "2467"]
[BlackElo "2222"]
[Result "0-1"]
[Round "07"]
[TimeControl "180+2"]
[Date "2023.01.03"]
[WhiteClock "0:00:01"]
[BlackClock "0:00:02"]

1. d4 {[%clk 0:02:56]}  Nf6 {[%clk 0:02:59]} 2. c4 {[%clk 0:02:56]}  c5 {[%clk 0:02:59]} 3. d5 {[%clk 0:02:55]}  b5 {[%clk 0:03:00]} 4. Qc2 {[%clk 0:02:53]}  bxc4 {[%clk 0:02:51]} 5. e4 {[%clk 0:02:53]}  e6 {[%clk 0:02:51]} 6. Bxc4 {[%clk 0:02:52]}  exd5 {[%clk 0:02:50]} 7. exd5 {[%clk 0:02:53]}  d6 {[%clk 0:02:46]} 8. Ne2 {[%clk 0:02:53]}  Be7 {[%clk 0:02:46]} 9. O-O {[%clk 0:02:53]}  O-O {[%clk 0:02:47]} 10. Ng3 {[%clk 0:02:53]}  Nbd7 {[%clk 0:02:41]} 11. Rd1 {[%clk 0:02:34]}  Nb6 {[%clk 0:02:38]} 12. b3 {[%clk 0:02:33]}  Nfd7 {[%clk 0:02:23]} 13. Bb2 {[%clk 0:02:21]}  Bf6 {[%clk 0:02:23]} 14. Nc3 {[%clk 0:02:09]}  Nxc4 {[%clk 0:02:14]} 15. bxc4 {[%clk 0:02:09]}  Ba6 {[%clk 0:02:14]} 16. Nce4 {[%clk 0:02:06]}  Bxb2 {[%clk 0:02:13]} 17. Qxb2 {[%clk 0:02:07]}  Ne5 {[%clk 0:02:12]} 18. Nf5 {[%clk 0:02:01]}  f6 {[%clk 0:01:40]} 19. Nfxd6 {[%clk 0:01:45]}  Bxc4 {[%clk 0:01:35]} 20. Qc3 {[%clk 0:01:29]}  Ba6 {[%clk 0:01:20]} 21. Qxc5 {[%clk 0:01:28]}  Nd3 {[%clk 0:01:15]} 22. Qa3 {[%clk 0:01:25]}  Qb6 {[%clk 0:00:51]} 23. Rxd3 {[%clk 0:01:21]}  Bxd3 {[%clk 0:00:50]} 24. Qxd3 {[%clk 0:01:22]}  Rfd8 {[%clk 0:00:46]} 25. Nf5 {[%clk 0:01:07]}  Qb2 {[%clk 0:00:44]} 26. Rd1 {[%clk 0:01:05]}  Qe5 {[%clk 0:00:43]} 27. g4 {[%clk 0:00:55]}  Rab8 {[%clk 0:00:37]} 28. d6 {[%clk 0:00:54]}  Rb4 {[%clk 0:00:35]} 29. Nfg3 {[%clk 0:00:45]}  Kh8 {[%clk 0:00:30]} 30. h3 {[%clk 0:00:45]}  h6 {[%clk 0:00:26]} 31. a3 {[%clk 0:00:43]}  Rb2 {[%clk 0:00:25]} 32. Nf5 {[%clk 0:00:37]}  Qe6 {[%clk 0:00:20]} 33. Neg3 {[%clk 0:00:25]}  Rb3 {[%clk 0:00:19]} 34. Qd5 {[%clk 0:00:22]}  Qxd5 {[%clk 0:00:16]} 35. Rxd5 {[%clk 0:00:21]}  Rxa3 {[%clk 0:00:17]} 36. Ne7 {[%clk 0:00:18]}  Ra6 {[%clk 0:00:15]} 37. Ngf5 {[%clk 0:00:17]}  Rb6 {[%clk 0:00:14]} 38. h4 {[%clk 0:00:15]}  Kh7 {[%clk 0:00:14]} 39. h5 {[%clk 0:00:15]}  a6 {[%clk 0:00:14]} 40. Kg2 {[%clk 0:00:15]}  Rd7 {[%clk 0:00:14]} 41. Kg3 {[%clk 0:00:15]}  Rd8 {[%clk 0:00:15]} 42. f3 {[%clk 0:00:15]}  Rb7 {[%clk 0:00:12]} 43. Ng6 {[%clk 0:00:16]}  Rb6 {[%clk 0:00:12]} 44. Kf4 {[%clk 0:00:13]}  Rb4+ {[%clk 0:00:12]} 45. Kg3 {[%clk 0:00:14]}  Rb6 {[%clk 0:00:12]} 46. Nge7 {[%clk 0:00:13]}  Rb5 {[%clk 0:00:11]} 47. Rd4 {[%clk 0:00:13]}  a5 {[%clk 0:00:11]} 48. Nc6 {[%clk 0:00:10]}  Rd7 {[%clk 0:00:12]} 49. Nfe7 {[%clk 0:00:09]}  a4 {[%clk 0:00:09]} 50. Ng6 {[%clk 0:00:08]}  Kg8 {[%clk 0:00:05]} 51. Re4 {[%clk 0:00:04]}  Kf7 {[%clk 0:00:02]} 52. Re7+ {[%clk 0:00:01]}  Rxe7 {[%clk 0:00:02]} 0-1


[Site "https://www.chess.com"]

[Event "Titled Tuesday Blitz January 03 Early 2023"]
[White "Perez Rodriguez, Jennifer"]
[Black "Goltsev, Dmitry"]
[WhiteFideId "3507831"]
[BlackFideId "24176710"]
[WhiteElo "2242"]
[BlackElo "2269"]
[Result "0-1"]
[Round "07"]
[TimeControl "180+2"]
[Date "2023.01.03"]
[WhiteClock "0:00:20"]
[BlackClock "0:00:55"]

1. e4 {[%clk 0:03:00]}  e6 {[%clk 0:02:56]} 2. d4 {[%clk 0:02:59]}  d5 {[%clk 0:02:57]} 3. Bd3 {[%clk 0:02:59]}  c5 {[%clk 0:02:55]} 4. exd5 {[%clk 0:02:59]}  exd5 {[%clk 0:02:54]} 5. Nf3 {[%clk 0:03:00]}  Nf6 {[%clk 0:02:54]} 6. O-O {[%clk 0:02:59]}  Be7 {[%clk 0:02:55]} 7. dxc5 {[%clk 0:02:59]}  Bxc5 {[%clk 0:02:55]} 8. Re1+ {[%clk 0:02:59]}  Be6 {[%clk 0:02:56]} 9. Ng5 {[%clk 0:02:57]}  O-O {[%clk 0:02:56]} 10. Nxe6 {[%clk 0:02:57]}  fxe6 {[%clk 0:02:56]} 11. Be3 {[%clk 0:02:54]}  Bxe3 {[%clk 0:02:47]} 12. Rxe3 {[%clk 0:02:53]}  Qb6 {[%clk 0:02:48]} 13. b3 {[%clk 0:02:49]}  Nbd7 {[%clk 0:02:36]} 14. Nd2 {[%clk 0:02:43]}  e5 {[%clk 0:02:32]} 15. Bf5 {[%clk 0:02:25]}  e4 {[%clk 0:02:03]} 16. Nf1 {[%clk 0:02:03]}  Ne5 {[%clk 0:01:57]} 17. a4 {[%clk 0:01:13]}  g6 {[%clk 0:01:49]} 18. a5 {[%clk 0:01:12]}  Qc5 {[%clk 0:01:41]} 19. Be6+ {[%clk 0:01:12]}  Kg7 {[%clk 0:01:41]} 20. b4 {[%clk 0:01:00]}  Qd6 {[%clk 0:01:36]} 21. Bh3 {[%clk 0:00:59]}  d4 {[%clk 0:01:36]} 22. Ng3 {[%clk 0:00:55]}  Qd5 {[%clk 0:01:23]} 23. Re1 {[%clk 0:00:48]}  Rae8 {[%clk 0:01:20]} 24. Qe2 {[%clk 0:00:46]}  d3 {[%clk 0:01:13]} 25. cxd3 {[%clk 0:00:46]}  Nxd3 {[%clk 0:01:14]} 26. Red1 {[%clk 0:00:45]}  Qd4 {[%clk 0:01:10]} 27. Rab1 {[%clk 0:00:40]}  Nd5 {[%clk 0:01:00]} 28. Nxe4 {[%clk 0:00:38]}  Rxe4 {[%clk 0:00:57]} 29. Rxd3 {[%clk 0:00:37]}  Nf4 {[%clk 0:00:56]} 30. Rxd4 {[%clk 0:00:20]}  Nxe2+ {[%clk 0:00:55]} 31. Kf1 {[%clk 0:00:21]}  Nxd4 {[%clk 0:00:56]} 32. Rd1 {[%clk 0:00:20]}  Nc2 {[%clk 0:00:55]} 0-1


[Site "https://www.chess.com"]

[Event "Titled Tuesday Blitz January 03 Early 2023"]
[White "Yeritsyan, Hayk"]
[Black "Torres Dominguez, David"]
[WhiteFideId "13307320"]
[BlackFideId "2220857"]
[WhiteElo "2241"]
[BlackElo "1994"]
[Result "1-0"]
[Round "07"]
[TimeControl "180+2"]
[Date "2023.01.03"]
[WhiteClock "0:00:28"]
[BlackClock "0:00:15"]

1. e4 {[%clk 0:03:00]}  Nc6 {[%clk 0:02:59]} 2. Nc3 {[%clk 0:03:00]}  e5 {[%clk 0:02:57]} 3. Nf3 {[%clk 0:03:00]}  Nf6 {[%clk 0:02:55]} 4. d3 {[%clk 0:02:55]}  d5 {[%clk 0:02:54]} 5. exd5 {[%clk 0:02:54]}  Nxd5 {[%clk 0:02:52]} 6. Be2 {[%clk 0:02:54]}  Bb4 {[%clk 0:02:46]} 7. Bd2 {[%clk 0:02:53]}  Nxc3 {[%clk 0:02:36]} 8. bxc3 {[%clk 0:02:54]}  Bd6 {[%clk 0:02:31]} 9. Rb1 {[%clk 0:02:48]}  O-O {[%clk 0:02:28]} 10. O-O {[%clk 0:02:42]}  b6 {[%clk 0:02:15]} 11. Ng5 {[%clk 0:02:34]}  Be7 {[%clk 0:02:11]} 12. Bf3 {[%clk 0:02:29]}  Bb7 {[%clk 0:02:10]} 13. Ne4 {[%clk 0:02:23]}  f5 {[%clk 0:02:06]} 14. Ng3 {[%clk 0:02:22]}  Bd6 {[%clk 0:01:55]} 15. c4 {[%clk 0:02:12]}  e4 {[%clk 0:01:47]} 16. dxe4 {[%clk 0:02:08]}  Nd4 {[%clk 0:01:47]} 17. Bc3 {[%clk 0:01:37]}  Nxf3+ {[%clk 0:01:39]} 18. Qxf3 {[%clk 0:01:31]}  fxe4 {[%clk 0:01:38]} 19. Qg4 {[%clk 0:01:27]}  Rf7 {[%clk 0:01:30]} 20. Nxe4 {[%clk 0:01:11]}  h5 {[%clk 0:01:29]} 21. Qg6 {[%clk 0:01:04]}  Bxh2+ {[%clk 0:01:22]} 22. Kxh2 {[%clk 0:01:03]}  Qh4+ {[%clk 0:01:21]} 23. Kg1 {[%clk 0:01:03]}  Bxe4 {[%clk 0:01:14]} 24. Qg3 {[%clk 0:01:00]}  Qxg3 {[%clk 0:01:02]} 25. fxg3 {[%clk 0:01:01]}  Bxc2 {[%clk 0:00:57]} 26. Rxf7 {[%clk 0:01:01]}  Kxf7 {[%clk 0:00:57]} 27. Rf1+ {[%clk 0:01:01]}  Kg6 {[%clk 0:00:51]} 28. Re1 {[%clk 0:00:59]}  Kf7 {[%clk 0:00:45]} 29. Re5 {[%clk 0:00:56]}  Re8 {[%clk 0:00:34]} 30. Rxh5 {[%clk 0:00:50]}  Re3 {[%clk 0:00:29]} 31. Be5 {[%clk 0:00:47]}  c5 {[%clk 0:00:29]} 32. Rg5 {[%clk 0:00:41]}  g6 {[%clk 0:00:25]} 33. Bb8 {[%clk 0:00:29]}  Ra3 {[%clk 0:00:25]} 34. Rd5 {[%clk 0:00:25]}  Rxa2 {[%clk 0:00:22]} 35. Rd7+ {[%clk 0:00:24]}  Ke6 {[%clk 0:00:22]} 36. Rxa7 {[%clk 0:00:24]}  Rxa7 {[%clk 0:00:19]} 37. Bxa7 {[%clk 0:00:25]}  Bd3 {[%clk 0:00:18]} 38. Bxb6 {[%clk 0:00:25]}  Kd6 {[%clk 0:00:18]} 39. Kf2 {[%clk 0:00:24]}  Bxc4 {[%clk 0:00:19]} 40. Ke3 {[%clk 0:00:25]}  Bd5 {[%clk 0:00:19]} 41. Bd8 {[%clk 0:00:24]}  Ke5 {[%clk 0:00:18]} 42. Be7 {[%clk 0:00:23]}  c4 {[%clk 0:00:17]} 43. Bb4 {[%clk 0:00:22]}  Bxg2 {[%clk 0:00:16]} 44. Bc3+ {[%clk 0:00:22]}  Kd5 {[%clk 0:00:16]} 45. Bd4 {[%clk 0:00:19]}  Be4 {[%clk 0:00:16]} 46. Bc3 {[%clk 0:00:19]}  Bd3 {[%clk 0:00:16]} 47. Bd4 {[%clk 0:00:19]}  Kc6 {[%clk 0:00:16]} 48. Bc3 {[%clk 0:00:18]}  Kb5 {[%clk 0:00:16]} 49. Kd2 {[%clk 0:00:19]}  Ka4 {[%clk 0:00:17]} 50. Bd4 {[%clk 0:00:19]}  Kb3 {[%clk 0:00:18]} 51. Bc3 {[%clk 0:00:20]}  Bf5 {[%clk 0:00:18]} 52. Bd4 {[%clk 0:00:20]}  g5 {[%clk 0:00:18]} 53. Bc3 {[%clk 0:00:20]}  g4 {[%clk 0:00:18]} 54. Bd4 {[%clk 0:00:21]}  Be4 {[%clk 0:00:18]} 55. Bc3 {[%clk 0:00:21]}  Bf3 {[%clk 0:00:18]} 56. Bd4 {[%clk 0:00:22]}  Bd5 {[%clk 0:00:19]} 57. Bc3 {[%clk 0:00:22]}  Bf3 {[%clk 0:00:19]} 58. Bd4 {[%clk 0:00:23]}  Bd5 {[%clk 0:00:19]} 59. Bc3 {[%clk 0:00:23]}  Be4 {[%clk 0:00:20]} 60. Bd4 {[%clk 0:00:23]}  Bd3 {[%clk 0:00:20]} 61. Bc3 {[%clk 0:00:23]}  Ka4 {[%clk 0:00:20]} 62. Bd4 {[%clk 0:00:24]}  Kb5 {[%clk 0:00:21]} 63. Bc3 {[%clk 0:00:24]}  Kc6 {[%clk 0:00:22]} 64. Ke3 {[%clk 0:00:24]}  Kd5 {[%clk 0:00:22]} 65. Kf4 {[%clk 0:00:25]}  Be2 {[%clk 0:00:22]} 66. Ke3 {[%clk 0:00:25]}  Bf3 {[%clk 0:00:22]} 67. Kf4 {[%clk 0:00:26]}  Bd1 {[%clk 0:00:22]} 68. Ke3 {[%clk 0:00:26]}  Ke6 {[%clk 0:00:22]} 69. Kd4 {[%clk 0:00:25]}  Be2 {[%clk 0:00:19]} 70. Ke3 {[%clk 0:00:26]}  Bf1 {[%clk 0:00:19]} 71. Kf4 {[%clk 0:00:26]}  Bh3 {[%clk 0:00:17]} 72. Ke4 {[%clk 0:00:26]}  Kd6 {[%clk 0:00:17]} 73. Kd4 {[%clk 0:00:26]}  Bf1 {[%clk 0:00:16]} 74. Ke3 {[%clk 0:00:26]}  Kc5 {[%clk 0:00:14]} 75. Kf4 {[%clk 0:00:26]}  Be2 {[%clk 0:00:14]} 76. Ke3 {[%clk 0:00:27]}  Kb5 {[%clk 0:00:15]} 77. Kxe2 {[%clk 0:00:26]}  Ka4 {[%clk 0:00:15]} 78. Kd2 {[%clk 0:00:27]}  Kb3 {[%clk 0:00:15]} 79. Be5 {[%clk 0:00:28]}  Ka4 {[%clk 0:00:14]} 80. Kc3 {[%clk 0:00:28]}  Kb5 {[%clk 0:00:15]} 81. Bd4 {[%clk 0:00:28]} 1-0


[Site "https://www.chess.com"]

[Event "Titled Tuesday Blitz January 03 Early 2023"]
[White "Rustemov, Alexander"]
[Black "Diaz Villagran, Robert"]
[WhiteFideId "4119002"]
[BlackFideId "3404056"]
[WhiteElo "2525"]
[BlackElo "2315"]
[Result "1/2-1/2"]
[Round "07"]
[TimeControl "180+2"]
[Date "2023.01.03"]
[WhiteClock "0:00:39"]
[BlackClock "0:00:22"]

1. d4 {[%clk 0:03:00]}  Nf6 {[%clk 0:02:59]} 2. c4 {[%clk 0:03:01]}  g6 {[%clk 0:02:59]} 3. Nf3 {[%clk 0:03:01]}  Bg7 {[%clk 0:03:00]} 4. g3 {[%clk 0:03:01]}  O-O {[%clk 0:03:00]} 5. Bg2 {[%clk 0:03:02]}  d6 {[%clk 0:03:01]} 6. Nc3 {[%clk 0:03:02]}  Bf5 {[%clk 0:02:47]} 7. Nh4 {[%clk 0:02:59]}  Bc8 {[%clk 0:02:47]} 8. O-O {[%clk 0:02:59]}  e5 {[%clk 0:02:38]} 9. Nf3 {[%clk 0:02:58]}  Nbd7 {[%clk 0:02:28]} 10. e4 {[%clk 0:02:57]}  c6 {[%clk 0:02:28]} 11. h3 {[%clk 0:02:56]}  Re8 {[%clk 0:02:28]} 12. Re1 {[%clk 0:02:54]}  a5 {[%clk 0:02:27]} 13. Be3 {[%clk 0:02:54]}  exd4 {[%clk 0:02:24]} 14. Nxd4 {[%clk 0:02:53]}  Nc5 {[%clk 0:02:25]} 15. Qc2 {[%clk 0:02:53]}  a4 {[%clk 0:02:24]} 16. Rab1 {[%clk 0:02:47]}  Nfd7 {[%clk 0:02:22]} 17. f4 {[%clk 0:02:45]}  Qa5 {[%clk 0:02:16]} 18. b4 {[%clk 0:02:42]}  axb3 {[%clk 0:02:16]} 19. axb3 {[%clk 0:02:43]}  Na6 {[%clk 0:02:13]} 20. Bf2 {[%clk 0:02:30]}  Nb4 {[%clk 0:02:02]} 21. Qd2 {[%clk 0:02:28]}  Nc5 {[%clk 0:02:00]} 22. Bf1 {[%clk 0:02:19]}  Bd7 {[%clk 0:00:52]} 23. Kg2 {[%clk 0:02:14]}  Rad8 {[%clk 0:00:51]} 24. g4 {[%clk 0:01:55]}  Bc8 {[%clk 0:00:51]} 25. Re3 {[%clk 0:01:34]}  Bxd4 {[%clk 0:00:41]} 26. Qxd4 {[%clk 0:01:32]}  Nc2 {[%clk 0:00:42]} 27. Qd2 {[%clk 0:01:25]}  Nxe3+ {[%clk 0:00:41]} 28. Bxe3 {[%clk 0:01:21]}  Nxe4 {[%clk 0:00:32]} 29. Nxe4 {[%clk 0:01:03]}  Qxd2+ {[%clk 0:00:33]} 30. Bxd2 {[%clk 0:01:02]}  Rxe4 {[%clk 0:00:32]} 31. Kf2 {[%clk 0:00:56]}  Rde8 {[%clk 0:00:30]} 32. b4 {[%clk 0:00:43]}  Bd7 {[%clk 0:00:24]} 33. Ra1 {[%clk 0:00:42]}  Rd4 {[%clk 0:00:20]} 34. Be3 {[%clk 0:00:39]}  Rde4 {[%clk 0:00:21]} 35. Bd2 {[%clk 0:00:39]}  Rd4 {[%clk 0:00:21]} 36. Be3 {[%clk 0:00:40]}  Rde4 {[%clk 0:00:22]} 37. Bd2 {[%clk 0:00:39]} 1/2-1/2


[Site "https://www.chess.com"]

[Event "Titled Tuesday Blitz January 03 Early 2023"]
[White "Maksimenko, Viktor"]
[Black "Goryachkina, Aleksandra"]
[WhiteFideId "13710478"]
[BlackFideId "4147103"]
[WhiteElo "2196"]
[BlackElo "2571"]
[Result "1/2-1/2"]
[Round "07"]
[TimeControl "180+2"]
[Date "2023.01.03"]
[WhiteClock "0:01:39"]
[BlackClock "0:00:13"]

1. d4 {[%clk 0:03:00]}  Nf6 {[%clk 0:02:58]} 2. c4 {[%clk 0:03:01]}  e6 {[%clk 0:02:58]} 3. Nf3 {[%clk 0:03:01]}  d5 {[%clk 0:02:57]} 4. g3 {[%clk 0:03:01]}  Be7 {[%clk 0:02:49]} 5. Bg2 {[%clk 0:03:01]}  O-O {[%clk 0:02:50]} 6. Nc3 {[%clk 0:03:02]}  dxc4 {[%clk 0:02:48]} 7. Ne5 {[%clk 0:03:01]}  Nc6 {[%clk 0:02:48]} 8. Bxc6 {[%clk 0:03:01]}  bxc6 {[%clk 0:02:48]} 9. Nxc6 {[%clk 0:03:02]}  Qe8 {[%clk 0:02:48]} 10. Nxe7+ {[%clk 0:03:03]}  Qxe7 {[%clk 0:02:48]} 11. Qa4 {[%clk 0:03:04]}  Nd5 {[%clk 0:02:44]} 12. Qxc4 {[%clk 0:03:04]}  a5 {[%clk 0:02:44]} 13. Bd2 {[%clk 0:03:05]}  Ba6 {[%clk 0:02:39]} 14. Qc5 {[%clk 0:03:05]}  Qd7 {[%clk 0:02:34]} 15. Rc1 {[%clk 0:02:53]}  Rfb8 {[%clk 0:02:12]} 16. b3 {[%clk 0:02:33]}  h6 {[%clk 0:01:54]} 17. Bf4 {[%clk 0:02:22]}  Nxc3 {[%clk 0:01:27]} 18. Qxc3 {[%clk 0:02:20]}  a4 {[%clk 0:01:09]} 19. Qxc7 {[%clk 0:02:08]}  Qd5 {[%clk 0:01:04]} 20. O-O {[%clk 0:02:04]}  Rc8 {[%clk 0:00:58]} 21. Qe5 {[%clk 0:02:02]}  Qxe5 {[%clk 0:00:46]} 22. dxe5 {[%clk 0:01:59]}  axb3 {[%clk 0:00:44]} 23. axb3 {[%clk 0:01:58]}  Bxe2 {[%clk 0:00:44]} 24. Rxc8+ {[%clk 0:01:57]}  Rxc8 {[%clk 0:00:44]} 25. Rb1 {[%clk 0:01:57]}  Bd3 {[%clk 0:00:38]} 26. Rd1 {[%clk 0:01:57]}  Be4 {[%clk 0:00:36]} 27. b4 {[%clk 0:01:54]}  Rc2 {[%clk 0:00:30]} 28. Be3 {[%clk 0:01:47]}  Rb2 {[%clk 0:00:29]} 29. Bc5 {[%clk 0:01:48]}  Bf3 {[%clk 0:00:27]} 30. Re1 {[%clk 0:01:45]}  g5 {[%clk 0:00:27]} 31. h3 {[%clk 0:01:44]}  h5 {[%clk 0:00:25]} 32. Be3 {[%clk 0:01:41]}  g4 {[%clk 0:00:25]} 33. hxg4 {[%clk 0:01:42]}  hxg4 {[%clk 0:00:25]} 34. Bc5 {[%clk 0:01:42]}  Kg7 {[%clk 0:00:25]} 35. Ra1 {[%clk 0:01:40]}  Kg6 {[%clk 0:00:25]} 36. Kf1 {[%clk 0:01:39]}  Kf5 {[%clk 0:00:23]} 37. Bd6 {[%clk 0:01:40]}  Ke4 {[%clk 0:00:21]} 38. Ke1 {[%clk 0:01:38]}  Re2+ {[%clk 0:00:17]} 39. Kf1 {[%clk 0:01:39]}  Rb2 {[%clk 0:00:15]} 40. Ke1 {[%clk 0:01:39]}  Re2+ {[%clk 0:00:13]} 41. Kf1 {[%clk 0:01:39]}  Rb2 {[%clk 0:00:13]} 1/2-1/2


[Site "https://www.chess.com"]

[Event "Titled Tuesday Blitz January 03 Early 2023"]
[White "Dragnev, Valentin"]
[Black "Renjith, Sravan"]
[WhiteFideId "1634852"]
[BlackFideId "4306783"]
[WhiteElo "2593"]
[BlackElo "2172"]
[Result "0-1"]
[Round "07"]
[TimeControl "180+2"]
[Date "2023.01.03"]
[WhiteClock "0:00:05"]
[BlackClock "0:00:15"]

1. e4 {[%clk 0:03:00]}  e5 {[%clk 0:02:59]} 2. Nf3 {[%clk 0:03:00]}  Nc6 {[%clk 0:02:57]} 3. Bb5 {[%clk 0:03:01]}  Nf6 {[%clk 0:02:57]} 4. O-O {[%clk 0:03:01]}  Nxe4 {[%clk 0:02:57]} 5. Re1 {[%clk 0:03:02]}  Nd6 {[%clk 0:02:58]} 6. Nxe5 {[%clk 0:03:02]}  Nxe5 {[%clk 0:02:58]} 7. Rxe5+ {[%clk 0:03:03]}  Be7 {[%clk 0:02:58]} 8. Bf1 {[%clk 0:03:04]}  O-O {[%clk 0:02:59]} 9. d4 {[%clk 0:03:05]}  Bf6 {[%clk 0:02:50]} 10. Re1 {[%clk 0:03:05]}  Re8 {[%clk 0:02:47]} 11. c3 {[%clk 0:03:05]}  Nf5 {[%clk 0:02:45]} 12. Rxe8+ {[%clk 0:02:53]}  Qxe8 {[%clk 0:02:45]} 13. Bf4 {[%clk 0:02:54]}  c6 {[%clk 0:02:36]} 14. d5 {[%clk 0:02:53]}  Qe4 {[%clk 0:02:34]} 15. Qd2 {[%clk 0:02:35]}  Qxd5 {[%clk 0:02:10]} 16. Qxd5 {[%clk 0:02:35]}  cxd5 {[%clk 0:02:09]} 17. Na3 {[%clk 0:02:36]}  g5 {[%clk 0:02:05]} 18. Bd2 {[%clk 0:02:30]}  d4 {[%clk 0:02:04]} 19. c4 {[%clk 0:02:27]}  d6 {[%clk 0:02:01]} 20. Bd3 {[%clk 0:02:27]}  a6 {[%clk 0:01:58]} 21. Nc2 {[%clk 0:02:20]}  Be6 {[%clk 0:01:57]} 22. Nb4 {[%clk 0:02:15]}  Rc8 {[%clk 0:01:52]} 23. b3 {[%clk 0:02:14]}  Ne7 {[%clk 0:01:49]} 24. Rd1 {[%clk 0:02:09]}  d5 {[%clk 0:01:48]} 25. cxd5 {[%clk 0:01:58]}  Nxd5 {[%clk 0:01:47]} 26. Nxd5 {[%clk 0:01:57]}  Bxd5 {[%clk 0:01:48]} 27. f3 {[%clk 0:01:55]}  h6 {[%clk 0:01:42]} 28. Kf2 {[%clk 0:01:54]}  Kf8 {[%clk 0:01:39]} 29. h4 {[%clk 0:01:51]}  Be6 {[%clk 0:01:33]} 30. hxg5 {[%clk 0:01:51]}  hxg5 {[%clk 0:01:33]} 31. Rh1 {[%clk 0:01:50]}  Ke7 {[%clk 0:01:32]} 32. Rh5 {[%clk 0:01:46]}  Rg8 {[%clk 0:01:30]} 33. Rh6 {[%clk 0:01:44]}  Be5 {[%clk 0:01:22]} 34. g3 {[%clk 0:01:43]}  g4 {[%clk 0:01:17]} 35. f4 {[%clk 0:01:41]}  Bg7 {[%clk 0:01:17]} 36. Rh5 {[%clk 0:01:37]}  Rh8 {[%clk 0:01:15]} 37. Rxh8 {[%clk 0:01:22]}  Bxh8 {[%clk 0:01:16]} 38. Be4 {[%clk 0:01:16]}  b6 {[%clk 0:01:09]} 39. Bb4+ {[%clk 0:01:07]}  Kd8 {[%clk 0:00:42]} 40. Ke2 {[%clk 0:00:58]}  Kc7 {[%clk 0:00:37]} 41. Kd3 {[%clk 0:00:56]}  Bd7 {[%clk 0:00:35]} 42. Bd5 {[%clk 0:00:46]}  Bf5+ {[%clk 0:00:33]} 43. Kd2 {[%clk 0:00:41]}  Be6 {[%clk 0:00:34]} 44. Be4 {[%clk 0:00:28]}  Bf6 {[%clk 0:00:24]} 45. Ba3 {[%clk 0:00:27]}  Bd7 {[%clk 0:00:21]} 46. Bd5 {[%clk 0:00:25]}  Be6 {[%clk 0:00:21]} 47. Be4 {[%clk 0:00:25]}  Bg7 {[%clk 0:00:20]} 48. Kd3 {[%clk 0:00:23]}  f5 {[%clk 0:00:19]} 49. Bg2 {[%clk 0:00:21]}  Bd7 {[%clk 0:00:20]} 50. Bd5 {[%clk 0:00:19]}  Bb5+ {[%clk 0:00:20]} 51. Kd2 {[%clk 0:00:16]}  Bc6 {[%clk 0:00:21]} 52. Bc4 {[%clk 0:00:15]}  b5 {[%clk 0:00:20]} 53. Be6 {[%clk 0:00:12]}  Be4 {[%clk 0:00:21]} 54. Bb4 {[%clk 0:00:11]}  Bf6 {[%clk 0:00:20]} 55. Ba3 {[%clk 0:00:08]}  Kc6 {[%clk 0:00:20]} 56. Bb4 {[%clk 0:00:08]}  Bd8 {[%clk 0:00:19]} 57. Ba3 {[%clk 0:00:06]}  Bb6 {[%clk 0:00:18]} 58. Bb4 {[%clk 0:00:06]}  a5 {[%clk 0:00:16]} 59. Be7 {[%clk 0:00:06]}  Bc5 {[%clk 0:00:16]} 60. Bf6 {[%clk 0:00:04]}  Bb4+ {[%clk 0:00:16]} 61. Ke2 {[%clk 0:00:05]}  d3+ {[%clk 0:00:16]} 62. Ke3 {[%clk 0:00:05]}  d2 {[%clk 0:00:15]} 0-1


[Site "https://www.chess.com"]